bitfinex-derivatives/quotes_ETHF0:USTF0_20250928
["timestamp","ask_amount","ask_price","bid_price","bid_amount"]
[1759100640375,2.41331052,4137.4,4137.3,4.8697]
[1759100640575,2.41331052,4137.4,4137.3,3.6861]
[1759100640770,0.75101052,4137.4,4137.3,4.8697]
[1759100640971,0.50001052,4137.4,4137.3,4.8697]
[1759100641173,0.6966,4138.3,4138.2,0.43476]
[1759100641374,0.4883,4138.8,4138.7,1.6619]
[1759100641580,1.93600159,4138.8,4138.7,1.6619]
[1759100641782,2.41340159,4138.8,4138.7,1.6619]
[1759100641979,2.41340159,4138.8,4138.7,0.4783]
[1759100642177,0.75110159,4138.8,4138.7,1.6619]
[1759100642679,1.6623,4138.3,4138.2,4.8697]
[1759100642876,2.41340159,4138.3,4138.2,3.2078]
[1759100643069,1.1849,4137.6,4137.5,1.9383]
[1759100643369,2.41358584,4137.6,4137.5,0.4783]
[1759100643570,1.23958584,4137.6,4137.5,1.9383]
[1759100643776,2.16258584,4137.6,4137.5,1.6619]
[1759100644080,2.41358584,4137.6,4137.5,1.6619]
[1759100644783,2.41358584,4137.6,4137.5,1.66501774]
[1759100644983,2.41665682,4137.6,4137.5,1.66501774]
[1759100645279,2.41665682,4137.6,4137.5,0.00311774]
[1759100645485,0.9657,4136.7,4136.6,0.6978]
[1759100645782,1.71698584,4136.7,4136.6,1.6619]
[1759100646384,2.41358584,4136.7,4136.6,1.6619]
[1759100646586,2.41358584,4136.7,4136.6,1.66395318]
[1759100648087,1.71698584,4136.7,4136.6,1.66395318]
[1759100648288,1.23958584,4136.7,4136.6,1.66395318]
[1759100648481,0.75128584,4136.7,4136.6,1.66395318]
[1759100648782,0.00307098,4137.6,4136.7,1.08731]
[1759100648988,0.49137098,4137.6,4137.5,1.6619]
[1759100649183,1.24330909,4137.6,4137.5,1.6619]
[1759100649487,1.24330909,4137.6,4137.5,1.9383]
[1759100650782,1.72070909,4137.6,4137.2,0.43487]
[1759100650975,0.2759,4137.0,4136.9,3.2078]
[1759100651177,2.69013811,4137.0,4136.9,3.2078]
[1759100651374,2.69013811,4137.0,4136.9,3.6861]
[1759100652086,2.41423811,4137.0,4136.9,3.6861]
[1759100652285,2.41423811,4137.0,4136.9,4.4085]
[1759100652489,1.6585,4136.8,4136.6,0.72445318]
[1759100652787,2.41043811,4136.7,4136.6,0.00205318]
[1759100656187,0.4877,4135.5,4135.4,0.4907]
[1759100656387,0.4877,4135.5,4135.4,1.6909]
[1759100656388,1.4354,4135.5,4135.4,1.6909]
[1759100656588,1.93633811,4135.5,4135.4,1.6909]
[1759100656788,0.50093811,4135.5,4135.4,4.8987]
[1759100656984,0.251,4135.9,4135.8,0.7224]
[1759100657186,1.2128,4135.9,4135.8,0.00198453]
[1759100657385,1.71371639,4135.9,4135.8,0.00198453]
[1759100657590,2.41041639,4135.9,4135.8,0.00198453]
[1759100658183,1.6585,4135.2,4135.1,1.64819]
[1759100658385,0.6967,4135.1,4134.9,3.2078]
[1759100658691,1.6585,4135.0,4134.9,3.6985]
[1759100659094,1.6585,4135.0,4134.9,4.42279398]
[1759100659393,0.4877,4135.0,4134.9,4.90059398]
[1759100659693,0.251,4135.2,4135.1,1.6909]
[1759100659899,0.75126777,4135.2,4135.1,1.6909]
[1759100660188,1.23896777,4135.2,4135.1,1.6909]
[1759100660393,2.40976777,4135.2,4135.1,1.6909]
[1759100660590,2.40976777,4135.2,4135.1,0.9685]
[1759100660991,1.71306777,4135.2,4134.9,3.20969398]
[1759100661196,1.6585,4135.0,4134.9,3.70039398]
[1759100661493,1.952,4135.0,4134.9,3.20969398]
[1759100661694,1.952,4135.0,4134.9,3.70039398]
[1759100661885,1.952,4135.0,4134.9,3.20969398]
[1759100662688,1.952,4135.0,4134.9,0.00189398]
[1759100662689,2.45176692,4135.0,4134.9,0.00189398]
[1759100663494,2.45176692,4135.0,4134.9,0.49259398]
[1759100663691,2.15826692,4135.0,4134.9,1.65899398]
[1759100664283,0.49976692,4135.0,4134.9,1.65899398]
[1759100664489,0.251,4135.0,4134.9,1.65899398]
[1759100665796,3.2078,4135.3,4135.2,2.09458]
[1759100666099,4.7815,4135.9,4135.8,1.6595]
[1759100666288,5.53039551,4135.9,4135.8,1.6595]
[1759100666687,5.27939551,4135.9,4135.8,1.6595]
[1759100666891,2.32259551,4135.9,4135.8,1.6595]
[1759100668701,1.65819551,4135.9,4135.8,1.6595]
[1759100668894,1.21339551,4135.9,4135.8,1.6595]
[1759100669095,2.32259551,4135.9,4135.8,1.6595]
[1759100670802,1.65819551,4135.9,4135.8,1.6595]
[1759100671003,1.87779551,4135.9,4135.8,1.6595]
[1759100671301,2.32259551,4135.9,4135.8,1.6595]
[1759100671499,2.32259551,4135.9,4135.8,0.485]
[1759100671697,1.5737,4135.5,4135.4,2.09456]
[1759100671901,0.251,4135.5,4135.4,0.929]
[1759100672204,2.6981861,4135.5,4135.4,0.929]
[1759100672394,2.6981861,4135.5,4135.4,1.6595]
[1759100673304,3.19697653,4135.5,4135.4,1.6595]
[1759100674196,3.03254043,4135.5,4135.4,0.485]
[1759100674401,2.59749043,4135.5,4135.4,0.485]
[1759100675703,1.21429043,4135.5,4135.4,1.6595]
[1759100675905,1.87869043,4135.5,4135.4,1.6595]
[1759100676404,2.32349043,4135.5,4135.4,1.6595]
[1759100677198,3.03255043,4135.5,4135.2,0.43508]
[1759100677500,1.5737,4135.3,4135.2,2.09458]
[1759100677699,2.32349043,4135.3,4135.2,2.09458]
[1759100681505,1.21429043,4135.3,4135.2,2.09458]
[1759100681710,0.74979043,4135.3,4135.2,2.09458]
[1759100682212,2.32349043,4135.3,4135.2,2.09458]
[1759100684005,1.73438297,4136.3,4135.2,6.6595]
[1759100684208,0.6644,4137.9,4137.5,0.43484]
[1759100684409,0.25407098,4137.6,4137.5,2.38234]
[1759100684608,0.71857098,4137.6,4137.5,2.38234]
[1759100684809,1.82777098,4137.6,4137.5,2.09434]
[1759100685106,0.71857098,4137.6,4137.5,2.38234]
[1759100685904,0.25407098,4137.6,4137.5,2.38234]
[1759100686104,9.8e-07,4137.6,4137.5,7.38234]
[1759100686706,0.274,4139.0,4138.1,0.43478]
[1759100686903,0.4645,4139.0,4138.9,2.09419]
[1759100687109,1.8247,4139.0,4138.9,1.36369]
[1759100687804,1.82720602,4139.0,4138.9,0.92263503]
[1759100688118,1.82720602,4139.0,4138.9,2.09713503]
[1759100690211,1.82720602,4139.0,4138.9,0.48794503]
[1759100690416,1.82720602,4139.0,4138.9,0.00294503]
[1759100690417,2.10120602,4139.0,4138.9,0.00294503]
[1759100690712,2.10120602,4139.0,4138.9,0.48794503]
[1759100690907,2.10120602,4139.0,4138.9,0.00294503]
[1759100694318,1.5851,4138.1,4138.0,3.2078]
[1759100694618,1.8361,4138.1,4138.0,3.2078]
[1759100694915,1.1705,4138.1,4138.0,4.8293]
[1759100695113,1.8361,4138.1,4138.0,3.6882]
[1759100695318,1.8361,4138.1,4138.0,3.6902855]
[1759100696410,1.1705,4138.1,4138.0,5.1119855]
[1759100696817,1.8361,4138.1,4138.0,5.1119855]
[1759100697005,1.8361,4138.1,4138.0,4.8313855]
[1759100698008,1.8361,4138.1,4138.0,3.6902855]
[1759100699611,1.8361,4138.1,4138.0,4.8313855]
[1759100700708,0.44820602,4139.0,4138.9,1.6215]
[1759100700920,1.5851,4138.6,4138.0,3.2098855]
[1759100701116,1.5851,4138.1,4138.0,3.2098855]
[1759100701419,1.8361,4138.1,4138.0,0.0020855]
[1759100701814,0.9195,4137.2,4137.1,1.1438]
[1759100702118,0.251,4137.2,4137.1,1.6215]
[1759100702619,0.6967,4137.2,4137.1,1.6215]
[1759100702817,0.6967,4137.2,4137.1,1.62403192]
[1759100703017,1.8361,4137.2,4137.1,0.48293192]
[1759100703412,1.8361,4137.2,4137.1,1.14633192]
[1759100703818,1.1705,4137.2,4137.1,1.62403192]
[1759100704114,0.4457,4137.5,4137.4,0.43485]
[1759100704321,0.4457,4137.5,4137.4,2.05635]
[1759100704619,0.251,4137.5,4137.4,2.05635]
[1759100705322,0.6967,4137.5,4137.4,1.6215]
[1759100705523,1.8361,4137.5,4137.4,1.6215]
[1759100705915,2.3313411,4137.5,4137.4,1.6215]
[1759100706117,2.3916911,4137.5,4137.1,0.00253192]
[1759100706321,0.9195,4137.2,4137.1,1.14633192]
[1759100706523,1.8361,4137.2,4137.1,1.14633192]
[1759100706716,5.34533278,4137.2,4137.1,0.00253192]
[1759100706916,5.34533278,4137.2,4136.2,1.1438]
[1759100706917,1.5851,4136.3,4136.2,1.1438]
[1759100707120,1.8361,4136.3,4136.2,0.4804]
[1759100707621,1.8361,4136.3,4136.2,1.1438]
[1759100707821,1.8361,4136.3,4136.2,1.14553757]
[1759100709328,1.8361,4136.3,4136.2,1.62323757]
[1759100709527,1.8361,4136.3,4136.2,0.00173757]
[1759100710028,2.33212676,4136.3,4136.2,0.00173757]
[1759100710922,2.33212676,4136.3,4136.2,0.48213757]
[1759100711118,2.33212676,4136.3,4136.2,1.14553757]
[1759100711524,2.33212676,4136.3,4136.2,0.48213757]
[1759100711741,2.33212676,4136.3,4136.2,0.00173757]
[1759100712226,2.33212676,4136.3,4135.5,3.2078]
[1759100712227,1.5836,4135.6,4135.5,3.2078]
[1759100712425,3.14305804,4135.6,4135.5,3.2078]
[1759100712630,3.63951254,4135.6,4135.5,3.2078]
[1759100713121,0.43513,4134.8,4134.7,0.9255]
[1759100713325,1.80741804,4134.8,4134.7,0.00269478]
[1759100713526,2.73898909,4134.8,4134.7,0.00269478]
[1759100713725,0.49645105,4134.8,4134.7,0.67909478]
[1759100713927,0.251,4134.8,4134.7,0.67909478]
[1759100715721,0.00246793,4135.6,4134.7,0.67909478]
[1759100715928,0.74671162,4135.5,4135.4,0.6764]
[1759100716127,0.251,4135.5,4135.4,0.6764]
[1759100716526,0.683,4135.4,4134.7,0.43782478]
[1759100716722,3.01396971,4135.3,4134.7,0.43782478]
[1759100717026,1.11812,4134.9,4134.7,0.67909478]
[1759100717227,0.934,4134.8,4134.7,0.00269478]
[1759100717631,0.934,4134.8,4134.7,0.67909478]
[1759100717832,0.251,4134.8,4134.7,0.00269478]
[1759100718136,0.934,4134.8,4134.7,0.00269478]
[1759100720142,4.44332436,4134.8,4134.7,0.00269478]
[1759100722737,10.53114436,4134.8,4133.9,0.6764]
[1759100722933,0.683,4134.1,4133.9,0.6764]
[1759100723142,0.251,4134.0,4133.9,0.6764]
[1759100723737,0.251,4134.0,4133.9,0.67897271]
[1759100723937,0.251,4134.0,4133.9,1.56977271]
[1759100726942,1.3804,4134.0,4133.9,1.56977271]
[1759100727246,1.8331,4134.0,4133.9,1.56977271]
[1759100729645,1.8331,4134.0,4133.9,1.13877271]
[1759100729844,5.53046702,4134.0,4133.9,0.00257271]
[1759100730045,6.02556776,4134.0,4133.9,0.00257271]
[1759100730645,2.60120074,4134.0,4133.9,0.00257271]
[1759100730947,2.32820074,4134.0,4133.9,1.09537271]
[1759100731150,2.60120074,4134.0,4133.9,0.43767271]
[1759100731341,2.60120074,4134.0,4133.9,0.00257271]
[1759100732246,9.44346776,4134.0,4133.0,3.2078]
[1759100732440,1.8551,4133.0,4132.9,0.02419638]
[1759100732640,0.273,4132.5,4131.9,3.2078]
[1759100732842,0.652,4132.1,4131.5,0.2857]
[1759100733038,1.39863371,4132.0,4131.9,0.6577]
[1759100733238,0.74958827,4132.0,4131.9,0.65992704]
[1759100733434,0.25395456,4132.0,4131.9,0.65992704]
[1759100733640,0.00295456,4132.0,4131.9,0.65992704]
[1759100733840,0.25395456,4132.0,4131.9,0.65992704]
[1759100734345,0.251,4132.4,4132.1,0.6577]
[1759100734549,0.652,4132.3,4132.2,1.0931]
[1759100734842,0.43539,4132.3,4131.9,0.00222704]
[1759100735051,3.8598,4132.0,4131.9,0.00222704]
[1759100735253,4.60981144,4132.0,4131.9,0.00222704]
[1759100735454,4.88281144,4132.0,4131.9,0.00222704]
[1759100736347,4.63081144,4132.0,4131.9,0.00222704]
[1759100736538,4.60981144,4132.0,4131.9,0.65992704]
[1759100736851,0.25461048,4132.0,4131.9,0.65992704]
[1759100737752,0.00261048,4132.0,4131.9,0.65992704]
[1759100738056,0.25561048,4132.0,4131.9,0.65992704]
[1759100739155,0.00261048,4132.0,4131.9,0.65992704]
[1759100739947,0.00261048,4132.0,4131.9,5.65992704]
[1759100740159,3.2078,4132.5,4132.4,1.09308]
[1759100740641,0.252,4132.9,4132.8,1.09304]
[1759100740843,0.74750866,4132.9,4132.8,1.09304]
[1759100741050,0.75010956,4132.9,4132.8,1.09304]
[1759100741841,1.40210956,4132.9,4132.8,0.6577]
[1759100742150,0.652,4132.8,4132.1,0.6577]
[1759100742350,3.4624009,4132.9,4132.8,0.6577]
[1759100742545,3.95832766,4132.9,4132.8,0.6577]
[1759100742748,4.61032766,4132.9,4132.8,0.6577]
[1759100742952,5.04565766,4132.9,4132.7,0.43534]
[1759100743257,0.652,4132.7,4132.6,1.09305]
[1759100743548,0.652,4132.4,4131.9,0.00222704]
[1759100743753,0.652,4132.2,4132.0,1.09311]
[1759100744049,0.49603692,4132.1,4132.0,1.09311]
[1759100744254,1.14803692,4132.1,4132.0,1.09311]
[1759100744558,0.49603692,4132.1,4132.0,1.37881]
[1759100745047,0.252,4132.3,4132.2,1.0931]
[1759100745048,0.904,4132.3,4132.2,1.0931]
[1759100745249,0.652,4132.0,4131.9,0.00222704]
[1759100745449,1.14813673,4132.0,4131.9,0.65992704]
[1759100746050,0.49613673,4132.0,4131.9,0.65992704]
[1759100746452,1.14813673,4132.0,4131.9,0.65992704]
[1759100747259,0.49613673,4132.0,4131.9,0.65992704]
[1759100747650,3.2078,4132.4,4132.2,0.4354]
[1759100747854,0.49636786,4132.3,4132.2,1.0931]
[1759100748057,0.49636786,4132.3,4132.0,0.6577]
[1759100748259,0.652,4132.1,4132.0,0.43542]
[1759100748456,0.74836786,4132.1,4132.0,1.09312]
[1759100749156,1.40036786,4132.1,4132.0,1.09312]
[1759100751365,1.87776786,4132.1,4132.0,1.52822]
[1759100751865,1.87776786,4132.1,4132.0,1.95922]
[1759100752066,2.33046786,4132.1,4132.0,1.5238]
[1759100752366,2.33046786,4132.1,4132.0,0.4351]
[1759100752565,2.33046786,4132.1,4132.0,1.0928]
[1759100752862,2.33046786,4132.1,4132.0,0.4351]
[1759100753962,1.5294,4132.0,4131.9,0.88305704]
[1759100754267,2.02576786,4132.0,4131.9,0.88305704]
[1759100755157,2.29186786,4132.0,4131.9,0.44762704]
[1759100756464,2.02576786,4132.0,4131.9,1.63222704]
[1759100757357,2.02576786,4132.0,4131.9,0.91752704]
[1759100757567,2.29186786,4132.0,4131.9,0.44762704]
[1759100758268,2.54386786,4132.0,4131.9,0.44762704]
[1759100758761,2.54386786,4132.0,4131.9,0.00222704]
[1759100759154,2.54386786,4132.0,4131.9,0.44762704]
[1759100759354,2.54386786,4132.0,4131.9,1.16232704]
[1759100759554,2.27776786,4132.0,4131.9,1.63222704]
[1759100760166,2.54386786,4132.0,4131.9,0.00222704]
[1759100762166,7.54386786,4132.0,4131.9,0.00222704]
[1759100762670,2.54386786,4132.0,4131.9,0.44762704]
[1759100763067,2.54386786,4132.0,4131.9,0.00222704]
[1759100764567,2.54386786,4132.0,4130.8,1.35085]
[1759100764568,1.5294,4130.9,4130.8,1.35085]
[1759100764769,2.27676786,4130.9,4130.8,0.88095]
[1759100765075,2.27676786,4130.9,4130.8,2.06555]
[1759100765076,0.74736786,4130.9,4130.8,2.06555]
[1759100765462,1.17736786,4130.9,4130.8,2.06724751]
[1759100766473,1.83346786,4130.9,4130.8,2.06724751]
[1759100766665,2.27676786,4130.9,4130.8,2.06724751]
[1759100766861,0.49636786,4130.9,4130.8,2.06724751]
[1759100767167,4.2939,4131.8,4131.7,2.06545]
[1759100767364,5.4873857,4131.8,4131.7,1.35075]
[1759100767670,1.7955,4131.5,4131.4,0.43548]
[1759100767867,2.5456857,4131.5,4131.4,0.43548]
[1759100768068,2.5456857,4131.5,4131.4,0.88088]
[1759100768280,2.5456857,4131.5,4131.4,0.43548]
[1759100768866,1.5294,4131.1,4131.0,0.88092]
[1759100769073,2.2795857,4131.1,4131.0,0.88092]
[1759100769276,1.6234857,4131.1,4131.0,2.33072]
[1759100769470,1.1801857,4131.1,4131.0,2.33072]
[1759100770264,2.2795857,4131.1,4131.0,0.43552]
[1759100771062,2.27947727,4131.1,4131.0,0.43552]
[1759100771870,0.4284,4130.9,4130.8,0.00169751]
[1759100772074,2.07967727,4130.9,4130.8,0.00169751]
[1759100772473,2.07967727,4130.9,4130.8,0.45549751]
[1759100772775,2.07967727,4130.9,4130.8,0.00169751]
[1759100773079,2.33167727,4130.9,4130.8,0.00169751]
[1759100774281,1.5806,4130.3,4130.1,0.43561]
[1759100774478,2.33067727,4130.2,4130.1,0.43561]
[1759100775276,2.33067727,4130.2,4130.1,0.43829402]
[1759100775474,2.33067727,4130.2,4130.1,0.00268402]
[1759100776576,1.5806,4129.4,4129.3,0.8895]
[1759100776880,3.34393276,4129.4,4129.3,0.8895]
[1759100777468,0.49907727,4129.4,4129.3,2.0137]
[1759100777778,0.00181163,4129.4,4129.3,2.01591478]
[1759100777981,0.43021163,4129.4,4129.3,2.01591478]
[1759100778169,0.00181163,4129.4,4129.3,2.01591478]
[1759100779177,0.43021163,4129.4,4129.3,2.01591478]
[1759100779373,0.88091163,4129.4,4129.3,2.01591478]
[1759100779680,1.58241163,4129.4,4129.3,0.89171478]
[1759100780679,1.58241163,4129.4,4129.3,0.43791478]
[1759100781480,1.58241163,4129.4,4129.3,2.01591478]
[1759100781869,1.58241163,4129.4,4129.3,0.43791478]
[1759100782674,2.07984386,4129.4,4129.3,0.00221478]
[1759100783282,0.8791,4128.9,4128.7,3.2078]
[1759100783486,2.84485549,4128.8,4128.7,4.09736]
[1759100783670,2.84485549,4128.8,4128.2,3.2078]
[1759100783877,2.60025549,4128.3,4128.2,3.2078]
[1759100784180,2.85225549,4128.3,4128.2,3.21007725]
[1759100784379,1.839,4128.3,4128.2,5.26179725]
[1759100784578,0.252,4128.3,4128.2,5.26179725]
[1759100785377,0.4659,4129.1,4129.0,2.05164]
[1759100785686,3.2078,4129.3,4129.2,2.05161]
[1759100785984,3.9257,4129.3,4129.2,2.05161]
[1759100786279,5.0468,4129.3,4129.2,1.36741]
[1759100786485,5.0468,4129.3,4129.2,0.43571]
[1759100786879,4.5921,4129.3,4129.2,2.05161]
[1759100787183,3.6737,4129.3,4129.2,2.05161]
[1759100787385,3.9257,4129.3,4129.2,2.05161]
[1759100787886,4.5921,4129.3,4129.2,2.05161]
[1759100788276,3.9257,4129.3,4129.2,2.05161]
[1759100788481,5.0468,4129.3,4129.2,2.05161]
[1759100789681,5.4825,4129.3,4129.2,1.6159]
[1759100789982,1.587,4129.2,4129.1,0.89962]
[1759100790180,1.587,4129.2,4129.1,1.1481]
[1759100790478,0.6664,4129.1,4129.0,0.43573]
[1759100790684,1.587,4129.0,4128.9,0.43574]
[1759100791081,1.587,4129.0,4128.9,0.89964]
[1759100791584,1.8689,4129.0,4128.9,0.43574]
[1759100791778,0.9206,4129.0,4128.9,2.05164]
[1759100792179,0.251,4129.0,4128.9,2.05164]
[1759100792381,0.7169,4129.0,4128.9,2.05164]
[1759100793185,0.251,4129.0,4128.9,2.05164]
[1759100793577,3.6737,4129.3,4129.2,2.05161]
[1759100793777,5.0458,4129.3,4129.2,2.05161]
[1759100794186,4.7948,4129.3,4129.2,2.05161]
[1759100794382,5.54421778,4129.3,4129.2,2.05161]
[1759100795878,3.4588,4129.3,4129.2,2.05161]
[1759100796187,0.00181163,4129.4,4129.3,1.6159]
[1759100796387,0.25281163,4129.4,4129.3,1.6159]
[1759100796589,0.00181163,4129.4,4129.3,1.6159]
[1759100796884,0.00181163,4129.4,4129.3,6.6159]
[1759100798177,1.13411163,4129.4,4129.3,1.6159]
[1759100798391,1.83981163,4129.4,4129.3,1.6159]
[1759100799277,2.33890718,4129.4,4129.3,0.4639]
[1759100799688,0.50090718,4129.4,4129.3,1.6159]
[1759100799990,0.25281163,4129.4,4129.3,1.6159]
[1759100800387,0.00181163,4129.4,4129.3,6.6159]
[1759100800687,0.00181163,4129.4,4129.3,1.6159]
[1759100805585,1.587,4130.6,4130.2,0.6842]
[1759100805803,1.587,4130.3,4130.2,0.4356]
[1759100806095,2.08703903,4130.3,4130.2,0.4356]
[1759100806593,2.08995033,4130.3,4130.2,0.4356]
[1759100808189,2.96557036,4130.3,4129.9,0.6842]
[1759100808487,0.9206,4129.3,4129.2,3.6717]
[1759100808687,2.96268139,4129.3,4129.2,5.25941]
[1759100809298,1.1323,4129.8,4129.7,1.36736]
[1759100809496,1.88329488,4129.8,4129.7,2.05156]
[1759100810195,1.21689488,4129.8,4129.7,2.05156]
[1759100810696,2.33799488,4129.8,4129.7,2.05156]
[1759100811497,1.67159488,4129.8,4129.7,2.05156]
[1759100812001,1.21689488,4129.8,4129.7,2.05156]
[1759100812392,1.88329488,4129.8,4129.7,2.05156]
[1759100812592,0.75099488,4129.8,4129.7,1.6159]
[1759100812996,1.21689488,4129.8,4129.7,1.6159]
[1759100813496,0.96589488,4129.8,4129.7,1.6159]
[1759100814197,1.62099488,4129.8,4129.7,1.6159]
[1759100814695,0.96589488,4129.8,4129.7,1.6159]
[1759100814897,1.62099488,4129.8,4129.7,1.6159]
[1759100815794,0.96589488,4129.8,4129.7,1.6159]
[1759100816200,0.49999488,4129.8,4129.7,1.6159]
[1759100816604,0.94239488,4129.8,4129.7,1.6159]
[1759100816997,2.01499488,4129.8,4129.7,1.6159]
[1759100817704,0.49999488,4129.8,4129.7,1.6159]
[1759100818304,0.94239488,4129.8,4129.7,1.6159]
[1759100819410,0.49999488,4129.8,4129.7,1.6159]
[1759100819910,0.94239488,4129.8,4129.7,1.6159]
[1759100820806,1.59749488,4129.8,4129.7,1.6159]
[1759100821800,0.49999488,4129.8,4129.7,1.6159]
[1759100822702,0.251,4129.9,4129.7,4.8237]
[1759100822904,0.6934,4129.9,4129.8,1.96875]
[1759100823209,1.19379914,4129.9,4129.8,1.96875]
[1759100823404,2.26639914,4129.9,4129.8,1.96875]
[1759100823908,2.26639914,4129.9,4129.8,1.30075]
[1759100824108,2.26639914,4129.9,4129.8,0.88405]
[1759100824510,2.26639914,4129.9,4129.8,0.43565]
[1759100824808,1.515,4129.3,4129.2,3.64351]
[1759100825009,2.26639914,4129.3,4129.2,3.64351]
[1759100825605,2.26639914,4129.3,4129.2,4.75991]
[1759100826507,2.26639914,4129.3,4129.2,4.09191]
[1759100826901,2.26639914,4129.3,4129.2,3.64351]
[1759100827309,2.26639914,4129.3,4129.2,4.09191]
[1759100827701,2.26639914,4129.3,4129.2,4.50861]
[1759100827902,2.26639914,4129.3,4129.2,5.17661]
[1759100829112,2.70210914,4129.3,4129.1,0.43572]
[1759100829413,2.01539914,4129.2,4129.1,0.43572]
[1759100830210,1.7792,4129.0,4128.9,0.43574]
[1759100830516,1.7792,4129.0,4128.9,0.88414]
[1759100830517,2.53059914,4129.0,4128.9,0.88414]
[1759100832014,2.01539914,4129.0,4128.9,1.94104]
[1759100832211,2.26639914,4129.0,4128.9,1.94104]
[1759100832713,1.61129914,4129.0,4128.9,1.94104]
[1759100833509,0.75139914,4129.0,4128.9,1.94104]
[1759100834420,3.2078,4129.6,4129.5,0.68718]
[1759100834712,1.5607113,4130.3,4130.2,0.4255]
[1759100834915,1.5578,4129.9,4129.8,0.4255]
[1759100835222,1.5578,4129.9,4129.7,0.43566]
[1759100835223,5.89251146,4129.9,4129.7,0.43566]
[1759100835421,1.5578,4129.8,4129.7,0.86116]
[1759100835718,1.5578,4129.8,4129.7,0.43566]
[1759100835917,1.99346,4129.8,4129.5,0.43568]
[1759100836214,2.86938146,4129.6,4129.5,0.43568]
[1759100836410,3.12038146,4129.6,4129.5,0.43568]
[1759100836714,1.8088,4129.6,4129.5,0.43568]
[1759100836916,2.68471146,4129.6,4129.5,0.86118]
[1759100837214,2.68471146,4129.6,4129.5,0.43568]
[1759100837417,2.68471146,4129.6,4128.8,1.93956]
[1759100837418,1.5578,4128.9,4128.8,1.93956]
[1759100837617,2.43371146,4128.9,4128.8,1.93956]
[1759100839120,2.43371146,4128.9,4128.8,0.43576]
[1759100839710,2.43371146,4128.9,4128.8,0.86126]
[1759100839922,0.443,4128.9,4128.8,1.93956]
[1759100840722,1.5578,4128.9,4128.8,1.93956]
[1759100841124,2.43371146,4128.9,4128.8,1.29936]
[1759100841317,2.43371146,4128.9,4128.8,0.86126]
[1759100842118,2.43371146,4128.9,4128.8,1.93956]
[1759100844424,2.68471146,4128.9,4128.8,1.93956]
[1759100844826,0.694,4128.9,4128.8,1.93956]
[1759100845027,1.331,4128.9,4128.8,1.93956]
[1759100845325,4.2973,4129.4,4129.3,1.9208]
[1759100845623,4.7485,4129.4,4129.3,1.9208]
[1759100845825,4.3625,4129.4,4129.3,1.9208]
[1759100846219,0.7035,4129.4,4129.3,1.9208]
[1759100846420,1.83416278,4129.4,4129.3,1.9208]
[1759100846627,0.74466278,4129.4,4129.3,1.9208]
[1759100847214,0.00851278,4129.4,4129.3,1.9208]
[1759100847425,0.251,4129.8,4129.7,1.92076]
[1759100848127,1.7917,4129.8,4129.7,1.92076]
[1759100849315,1.5436113,4130.3,4130.2,1.92071]
[1759100849623,1.7946113,4130.3,4130.1,0.43561]
[1759100851433,1.5407,4130.2,4130.1,1.92071]
[1759100851931,0.0029113,4130.3,4130.1,1.29501]
[1759100852129,0.0029113,4130.3,4130.2,1.4851]
[1759100852339,0.2539113,4130.3,4130.2,1.4851]
[1759100852531,1.3434113,4130.3,4130.2,1.4851]
[1759100852835,0.2539113,4130.3,4130.2,1.4851]
[1759100853130,1.7946113,4130.3,4130.2,1.4851]
[1759100853832,0.7064113,4130.3,4130.2,1.4851]
[1759100854027,0.2539113,4130.3,4130.2,1.4851]
[1759100854732,0.2539113,4130.3,4130.2,6.4851]
[1759100854933,0.0029113,4130.3,4130.2,6.4851]
[1759100856331,0.0029113,4130.3,4130.2,6.7361]
[1759100856841,0.251,4130.8,4130.7,1.92066]
[1759100857035,3.8448,4131.5,4130.7,1.92066]
[1759100857339,5.0169,4131.5,4131.4,0.43548]
[1759100857639,5.2679,4131.5,4131.4,0.43548]
[1759100857938,5.27034712,4131.5,4131.4,0.4373319]
[1759100858634,5.27034712,4131.5,4131.4,1.4996319]
[1759100858938,5.27034712,4131.5,4131.4,1.9224319]
[1759100859127,5.00194712,4131.5,4131.4,1.9224319]
[1759100859334,5.49200457,4131.5,4131.4,1.9224319]
[1759100861232,3.91374712,4131.5,4131.4,1.9224319]
[1759100862334,4.55074712,4131.5,4131.4,1.9224319]
[1759100862534,5.00194712,4131.5,4131.4,1.9224319]
[1759100862735,1.79414712,4131.5,4131.4,1.9224319]
[1759100864338,2.06254712,4131.5,4131.4,0.0018519]
[1759100864635,7.55195616,4131.5,4131.4,0.0018519]
[1759100864840,1.5407,4130.4,4129.8,3.2078]
[1759100865031,1.5407,4130.1,4130.0,0.43562]
[1759100865232,1.7917,4130.1,4130.0,1.92072]
[1759100865438,0.7035,4130.1,4130.0,2.17802]
[1759100865839,0.4525,4130.5,4130.4,1.92069]
[1759100866141,1.5407,4130.5,4130.4,1.92069]
[1759100866839,0.251,4130.6,4130.4,1.92069]
[1759100867036,0.7035,4130.6,4130.5,1.7424]
[1759100867235,0.637,4130.4,4130.1,0.43561]
[1759100867444,1.5407,4130.1,4130.0,0.00176908]
[1759100867740,0.9037,4130.1,4130.0,1.48686908]
[1759100867944,0.4525,4130.1,4130.0,1.74416908]
[1759100868147,1.5407,4130.1,4130.0,1.48686908]
[1759100869243,0.4525,4130.1,4130.0,1.74416908]
[1759100869450,1.7917,4130.5,4130.4,1.4851]
[1759100869747,2.28145835,4130.5,4130.4,1.4851]
[1759100869944,2.28145835,4130.5,4130.4,1.92069]
[1759100870151,2.54985835,4130.5,4130.4,0.87219]
[1759100870740,2.54985835,4130.5,4130.4,0.43559]
[1759100872942,2.28145835,4130.5,4130.4,1.92069]
[1759100874046,3.2078,4130.8,4130.7,0.43556]
[1759100874349,4.0923,4130.8,4130.7,1.97596]
[1759100874551,4.7382,4130.8,4130.7,1.97596]
[1759100875056,5.75155925,4130.8,4130.7,0.43556]
[1759100875245,5.22876382,4130.8,4130.7,1.97596]
[1759100875447,0.4454,4131.2,4131.1,1.5404]
[1759100875650,0.74151955,4131.2,4131.1,1.97592]
[1759100875851,1.3423,4131.2,4131.1,1.97592]
[1759100876146,1.7814,4131.2,4131.1,1.31862]
[1759100876352,2.27014423,4131.2,4131.1,0.43552]